bitfinex/quotes_ETHUSD_20250721
["timestamp","ask_amount","ask_price","bid_price","bid_amount"]
[1753139184246,3.23417483,3755.1,3754.9,4.04]
[1753139185500,0.5711,3755.1,3754.9,4.04]
[1753139186498,0.1328,3755.1,3754.9,4.04]
[1753139186716,0.1328,3755.1,3755.0,4.04]
[1753139189301,0.1328,3755.1,3754.8,0.02763257]
[1753139189468,0.1328,3755.1,3755.0,4.04]
[1753139191475,2.79585537,3755.1,3754.8,0.02763257]
[1753139191680,2.79585537,3755.1,3754.9,4.04]
[1753139191895,2.79585537,3755.1,3754.8,0.001]
[1753139192101,2.79585537,3755.1,3755.0,4.04]
[1753139193310,2.79585537,3755.1,3754.8,0.001]
[1753139193487,0.1328,3755.1,3754.9,4.04]
[1753139194814,0.1328,3755.1,3755.0,0.02663115]
[1753139194977,0.1328,3755.1,3755.0,0.4652]
[1753139197817,0.002,3755.3,3755.0,1.18480686]
[1753139198112,0.002,3755.3,3755.1,0.02663044]
[1753139198307,0.002,3755.3,3755.2,4.04]
[1753139198816,0.002,3755.3,3755.2,4.5052]
[1753139201408,0.002,3755.3,3755.2,4.04]
[1753139203131,0.002,3755.3,3754.8,0.001]
[1753139203289,2.66318676,3754.9,3754.8,0.001]
[1753139203919,3.86638676,3754.9,3754.8,0.001]
[1753139204107,3.86638676,3754.9,3754.8,4.041]
[1753139204283,3.86638676,3754.9,3754.8,0.001]
[1753139206312,6.86638676,3754.9,3754.8,0.001]
[1753139207754,3.42788334,3754.2,3754.1,0.02]
[1753139207912,3.42788334,3754.2,3754.1,4.06]
[1753139208114,3.87178334,3754.2,3754.1,4.06]
[1753139210965,2.66368334,3754.2,3754.1,4.06]
[1753139211457,2.66368334,3754.2,3754.1,0.02]
[1753139211625,2.66368334,3754.2,3754.1,4.06]
[1753139211626,3.10758334,3754.2,3754.1,4.06]
[1753139211833,2.66368334,3754.2,3754.1,4.06]
[1753139217349,3.10758334,3754.2,3754.1,4.06]
[1753139217579,3.93228334,3754.2,3754.1,0.02]
[1753139217783,6.93228334,3754.2,3754.1,0.02]
[1753139220052,0.8247,3754.2,3754.1,0.02]
[1753139220244,3.48838334,3754.2,3754.1,0.02]
[1753139220439,3.93228334,3754.2,3754.1,0.02]
[1753139221980,3.48838334,3754.2,3754.1,0.02]
[1753139222679,3.93228334,3754.2,3754.1,0.02]
[1753139223375,3.93228334,3754.2,3754.1,0.021]
[1753139224058,3.48838334,3754.2,3754.1,0.021]
[1753139224779,2.66368334,3754.2,3754.1,0.021]
[1753139224994,0.7696,3754.5,3754.1,0.4811]
[1753139225197,2.66362238,3754.3,3754.2,0.4601]
[1753139225760,3.0,3754.8,3754.2,0.4601]
[1753139225964,2.66325769,3754.8,3754.2,1.2341]
[1753139226206,2.6634221,3754.6,3754.3,0.4601]
[1753139226768,2.66326404,3754.8,3754.3,0.4601]
[1753139226993,2.66346797,3754.6,3754.4,0.4601]
[1753139227709,0.1328,3754.4,3754.2,0.774]
[1753139227912,2.66346797,3754.6,3754.2,0.774]
[1753139228072,2.66348274,3754.5,3754.2,0.774]
[1753139228273,2.66348274,3754.5,3754.3,0.4601]
[1753139228508,2.66348274,3754.5,3754.4,0.4601]
[1753139230090,0.1328,3754.4,3754.3,4.041]
[1753139230729,2.66366662,3754.3,3754.2,4.04]
[1753139231039,0.002,3754.9,3754.2,4.5001]
[1753139231186,0.002,3754.9,3754.3,0.80063612]
[1753139231187,0.1328,3754.4,3754.3,0.80063612]
[1753139231385,0.1328,3754.6,3754.3,3.92434851]
[1753139231626,0.1328,3754.6,3754.4,0.4601]
[1753139231828,0.002,3754.9,3754.5,1.65003055]
[1753139232031,0.002,3754.9,3754.7,0.774]
[1753139232235,0.002,3754.9,3754.8,4.06663257]
[1753139232520,0.002,3754.9,3754.8,4.52673257]
[1753139234527,0.002,3754.9,3754.8,7.18999026]
[1753139234744,0.002,3754.9,3754.8,9.3879963]
[1753139237676,0.002,3754.9,3754.8,6.72473861]
[1753139237840,0.002,3754.9,3754.8,9.41462887]
[1753139238045,0.002,3754.9,3754.8,5.3479963]
[1753139238243,0.002,3754.9,3754.8,9.41462887]
[1753139238442,0.002,3754.9,3754.8,9.3879963]
[1753139240679,0.002,3754.9,3754.8,2.68473861]
[1753139241070,0.002,3754.9,3754.8,5.8424]
[1753139241446,0.002,3754.9,3754.5,1.2238]
[1753139241787,2.66520747,3754.9,3754.5,1.2238]
[1753139241983,2.66520747,3754.9,3754.6,4.039]
[1753139242186,2.6632819,3754.8,3754.7,4.039]
[1753139242492,2.66520584,3754.9,3754.7,4.039]
[1753139243087,2.66520584,3754.9,3754.5,0.4852347]
[1753139243088,0.1328,3754.7,3754.5,0.4852347]
[1753139243244,0.1328,3754.7,3754.1,0.021]
[1753139243245,0.1328,3754.7,3754.6,4.52423399]
[1753139243445,0.1328,3754.7,3754.6,5.05573739]
[1753139245992,0.1328,3754.7,3754.6,5.05673739]
[1753139246290,0.002,3754.9,3754.7,0.7693]
[1753139246491,0.002,3754.9,3754.8,0.02663257]
[1753139246849,0.002,3754.9,3754.8,0.48523257]
[1753139247089,0.002,3754.9,3754.8,1.34745064]
[1753139249092,0.002,3754.9,3754.8,5.38645064]
[1753139252468,0.002,3754.9,3754.8,8.04970833]
[1753139252803,0.002,3754.9,3754.8,8.02307576]
[1753139253300,0.002,3754.9,3754.8,5.35981807]
[1753139253463,0.002,3754.9,3754.8,5.38645064]
[1753139253865,0.002,3754.9,3754.8,8.04970833]
[1753139254101,0.002,3754.9,3754.8,8.02307576]
[1753139255406,0.002,3754.9,3754.8,8.82377576]
[1753139256502,0.002,3754.9,3754.8,9.50657576]
[1753139256807,0.002,3754.9,3754.8,12.50657576]
[1753139258176,0.002,3754.9,3754.8,27.12527376]
[1753139258509,0.002,3754.9,3754.8,42.50657576]
[1753139258712,1e-08,3754.9,3754.8,42.97769902]
[1753139259002,0.002,3755.3,3755.2,6.977274]
[1753139259203,0.002,3755.3,3755.2,12.41210772]
[1753139259395,0.002,3755.3,3755.2,18.41981072]
[1753139259894,0.002,3755.6,3755.5,3.97706128]
[1753139260096,0.002,3755.6,3755.5,30.28777889]
[1753139260409,0.002,3755.6,3755.5,21.78633528]
[1753139260607,0.002,3755.6,3755.5,19.85953121]
[1753139261774,0.002,3755.6,3755.5,21.07552121]
[1753139261997,0.002,3755.6,3755.5,19.66062821]
[1753139262400,0.002,3755.6,3755.5,11.23399521]
[1753139264610,0.002,3755.6,3755.5,21.35634221]
[1753139265731,0.002,3755.6,3755.5,41.23399521]
[1753139265937,0.002,3755.6,3755.5,26.71168821]
[1753139266291,0.002,3755.6,3755.5,26.27636421]
[1753139266820,0.002,3755.6,3755.5,35.18156555]
[1753139266993,0.002,3755.6,3755.5,32.66156555]
[1753139267188,0.002,3755.6,3755.5,31.88877055]
[1753139267728,0.002,3755.6,3755.5,41.43075655]
[1753139268226,1e-08,3755.7,3755.6,1.3751]
[1753139268429,1e-08,3755.7,3755.6,40.47301812]
[1753139268727,1e-08,3755.7,3755.6,10.44639122]
[1753139269029,1e-08,3755.7,3755.6,40.44639122]
[1753139269223,0.002,3756.4,3756.3,7.03729418]
[1753139269396,0.002,3756.4,3756.3,12.39025035]
[1753139269726,0.002,3756.4,3756.3,31.94383835]
[1753139269932,1e-08,3756.5,3756.4,36.2121233]
[1753139270136,1e-08,3756.9,3756.8,7.03693986]
[1753139270302,1e-08,3756.9,3756.8,27.61290635]
[1753139270495,1e-08,3756.9,3756.8,19.97016079]
[1753139271120,1e-08,3756.9,3756.8,44.27977379]
[1753139271631,1e-08,3756.9,3756.8,35.76049579]
[1753139272191,0.002,3757.1,3757.0,2.66169816]
[1753139272396,0.022,3757.9,3757.8,3.21113151]
[1753139272592,0.022,3757.9,3757.8,8.03366597]
[1753139272833,0.022,3757.9,3757.8,8.58535466]
[1753139273531,0.022,3757.9,3757.8,1.44172315]
[1753139273731,0.022,3757.9,3757.8,4.06261131]
[1753139274144,0.022,3757.9,3757.8,4.06461131]
[1753139276841,0.022,3757.9,3757.8,7.27574282]
[1753139277045,0.022,3757.9,3757.8,7.38193151]
[1753139278812,0.022,3757.9,3757.8,8.87630132]
[1753139280519,0.022,3757.9,3757.8,6.87630132]
[1753139281047,0.022,3757.9,3757.8,0.1328]
[1753139281240,0.022,3757.9,3757.8,4.1698]
[1753139281442,0.022,3757.9,3757.8,7.85304282]
[1753139281641,0.022,3757.9,3757.8,8.62843151]
[1753139282042,0.022,3757.9,3757.8,11.62843151]
[1753139282244,0.002,3757.9,3757.8,13.35739376]
[1753139282443,0.002,3758.5,3758.4,7.01270668]
[1753139282656,0.002,3758.5,3758.4,11.05670668]
[1753139282860,0.002,3758.5,3758.4,47.75727417]
[1753139283160,0.002,3758.5,3758.4,46.42727408]
[1753139283332,1e-08,3758.5,3758.4,47.2240711]
[1753139283669,1e-08,3758.5,3758.4,43.2609461]
[1753139283961,0.02,3758.9,3758.4,43.2609461]
[1753139283962,0.02,3758.9,3758.8,3.21042353]
[1753139284142,0.02,3758.9,3758.8,17.20529525]
[1753139284356,0.02,3758.9,3758.8,17.75699102]
[1753139284523,0.02,3758.9,3758.8,50.38452495]
[1753139284719,1e-08,3758.9,3758.8,50.38452495]
[1753139285021,1e-08,3759.0,3758.9,6.21035276]
[1753139285336,1e-08,3759.0,3758.9,37.45785276]
[1753139286956,0.002,3759.8,3759.7,7.00138668]
[1753139287159,0.002,3759.8,3759.7,31.50721543]
[1753139287344,1e-08,3759.8,3759.7,42.45701343]
[1753139287560,1e-08,3759.8,3759.7,42.92538034]
[1753139287748,1e-08,3759.8,3759.7,38.54581343]
[1753139287947,1e-08,3759.8,3759.7,30.66234043]
[1753139288159,1e-08,3759.8,3759.7,29.50815343]
[1753139288459,1e-08,3759.8,3759.7,25.45915343]
[1753139288664,1e-08,3759.8,3759.7,29.50915343]
[1753139289336,1e-08,3759.8,3759.7,25.45915343]
[1753139289550,1e-08,3759.8,3759.7,29.50815343]
[1753139290965,1e-08,3759.8,3759.7,25.45915343]
[1753139291164,1e-08,3759.8,3759.7,29.50715343]
[1753139291461,1e-08,3759.8,3759.7,28.09476243]
[1753139291782,1e-08,3759.8,3759.7,27.16448443]
[1753139293764,1e-08,3759.8,3759.7,12.59381343]
[1753139293969,1e-08,3759.8,3759.7,42.59381343]
[1753139294932,1e-08,3759.8,3759.7,42.59081343]
[1753139295344,1e-08,3759.8,3759.7,43.23216365]
[1753139295542,1e-08,3759.8,3759.7,39.18716365]
[1753139295763,1e-08,3759.8,3759.7,42.92738034]
[1753139295970,1e-08,3759.8,3759.7,12.92738034]
[1753139296171,1e-08,3759.8,3759.7,42.92738034]
[1753139296376,1e-08,3759.8,3759.7,43.23316365]
[1753139296585,0.002,3760.4,3760.3,2.65936228]
[1753139296783,1e-08,3760.4,3760.3,48.13113733]
[1753139296941,1e-08,3760.4,3760.3,18.10454371]
[1753139297147,1e-08,3760.4,3760.3,18.55834371]
[1753139297479,1e-08,3760.4,3760.3,48.55834371]
[1753139297681,1e-08,3760.4,3760.3,39.00745671]
[1753139298047,1e-08,3760.4,3760.3,37.62050489]
[1753139298350,1e-08,3760.4,3760.3,35.65250489]
[1753139298688,1e-08,3760.4,3760.3,31.82289889]
[1753139299182,1e-08,3760.4,3760.3,39.50607189]
[1753139300276,1e-08,3760.4,3760.3,51.55649289]
[1753139300482,1e-08,3760.4,3760.3,50.29787889]
[1753139300646,1e-08,3760.4,3760.3,47.49687889]
[1753139300843,1e-08,3760.4,3760.3,39.46169689]
[1753139301068,1e-08,3760.4,3760.3,18.75549289]
[1753139301384,1e-08,3760.4,3760.3,13.70669289]
[1753139301568,1e-08,3760.4,3760.3,16.74704371]
[1753139303482,1e-08,3760.4,3760.3,17.29704371]
[1753139305700,1e-08,3760.4,3760.3,13.25304371]
[1753139305903,1e-08,3760.4,3760.3,17.29604371]
[1753139306699,1e-08,3760.4,3760.3,41.20993271]
[1753139307004,1e-08,3760.4,3760.3,48.53324371]
[1753139307298,0.002,3761.2,3761.1,3.20879662]
[1753139307501,0.002,3761.2,3761.1,24.43853424]
[1753139307795,0.002,3761.2,3761.1,24.99854628]
[1753139307998,0.002,3761.2,3761.1,21.21048628]
[1753139308184,0.002,3761.2,3761.1,17.90701228]
[1753139308911,0.002,3761.2,3761.1,11.23861628]
[1753139309101,0.002,3761.2,3761.1,20.11072728]
[1753139311504,0.002,3761.2,3761.1,17.33305528]
[1753139311703,0.002,3761.2,3761.1,10.78481628]
[1753139312014,0.002,3761.2,3761.1,10.23481628]
[1753139312404,0.002,3761.2,3761.1,6.74081628]
[1753139312566,0.002,3761.2,3761.1,10.78481628]
[1753139314313,0.002,3761.2,3761.1,23.53314528]
[1753139314499,0.002,3761.2,3761.1,28.27746528]
[1753139314680,0.002,3761.2,3761.1,12.01501628]
[1753139315088,0.002,3761.2,3761.1,39.07162328]
[1753139315292,0.002,3761.2,3761.1,38.98441528]
[1753139315508,0.002,3761.2,3761.1,22.45946528]
[1753139315808,0.002,3761.2,3761.1,10.78481628]
[1753139317877,0.002,3761.2,3761.1,10.78281628]
[1753139320381,0.002,3761.2,3761.1,6.74081628]
[1753139320594,0.002,3761.2,3761.1,10.78181628]
[1753139322300,0.002,3761.2,3761.1,10.38259662]
[1753139322484,0.002,3761.2,3761.1,10.38159662]
[1753139323514,1.002,3761.2,3761.1,10.38159662]
[1753139324787,1.002,3761.2,3761.1,3.6828]
[1753139325095,1.4303,3761.2,3761.1,4.7218]
[1753139325298,2.2593,3761.2,3761.1,4.039]
[1753139326223,11.02348497,3761.2,3760.9,0.1328]
[1753139326397,3.46203802,3760.9,3760.8,6.376]
[1753139326598,3.46203802,3760.9,3760.8,10.417]
[1753139326803,3.89033802,3760.9,3760.8,10.417]
[1753139327528,3.89033802,3760.9,3760.8,4.041]
[1753139328026,3.89033802,3760.9,3759.9,2.65963342]
[1753139328027,0.8031,3760.2,3759.6,9.03783494]
[1753139328324,0.4688,3760.1,3759.7,0.02659786]
[1753139328511,0.4688,3760.1,3759.7,4.06759786]
[1753139328710,3.59538828,3760.2,3759.7,4.06759786]
[1753139329029,0.4688,3760.1,3759.7,4.06759786]
[1753139329190,3.59538828,3760.2,3759.7,4.06759786]
[1753139329390,0.4688,3760.0,3759.7,4.06759786]
[1753139330911,0.4688,3759.9,3759.7,4.06759786]
[1753139331430,0.8031,3760.2,3759.9,2.65959524]
[1753139331595,0.8031,3760.2,3760.0,4.06859574]
[1753139332230,0.9359,3760.5,3760.0,6.72815244]
[1753139332531,9.28299893,3761.3,3760.4,2.65922302]
[1753139332532,0.817,3760.9,3760.4,2.65922302]
[1753139332741,0.817,3760.9,3760.5,6.72679104]
[1753139333042,0.817,3760.9,3760.5,4.0675922]
[1753139333398,0.819,3760.9,3760.5,4.0675922]
[1753139333822,1.2878,3760.9,3760.5,4.0675922]
[1753139335295,3.47799241,3760.9,3760.5,4.0675922]
[1753139335508,0.4688,3760.8,3760.5,4.0675922]
[1753139335836,0.4688,3760.7,3760.5,4.041]
[1753139337404,0.819,3760.9,3760.5,4.0675922]
[1753139337648,1.2878,3760.9,3760.5,4.0675922]
[1753139337797,0.819,3760.9,3760.5,4.0675922]
[1753139338135,0.4688,3760.8,3760.5,4.0675922]
[1753139339949,0.819,3760.9,3760.5,4.0675922]
[1753139340234,0.819,3760.9,3760.5,6.72681112]
[1753139341540,0.819,3760.9,3760.6,0.72903111]
[1753139341714,0.002,3760.9,3760.7,4.61659079]
[1753139341918,0.002,3760.9,3760.8,0.6828]
[1753139342156,0.002,3760.9,3760.8,0.70939008]
[1753139343458,0.8017,3760.9,3760.8,0.6828]
[1753139344161,1.2705,3760.9,3760.8,4.04]
[1753139344366,2.65929156,3760.4,3760.3,4.69]
[1753139344514,2.65939334,3760.3,3759.6,6.379]
[1753139344715,2.65950373,3760.1,3759.7,0.1328]
[1753139344946,0.7997,3760.2,3759.8,4.044]
[1753139346752,2.65978668,3759.7,3759.6,6.379]
[1753139346938,2.65978668,3759.7,3759.6,10.423]
[1753139347721,2.65978668,3759.7,3759.6,0.001]
[1753139347722,3.92828668,3759.7,3759.6,0.001]
[1753139347929,3.92828668,3759.7,3759.6,4.045]
[1753139351075,0.7997,3759.7,3759.6,4.045]
[1753139351371,0.1328,3759.8,3759.6,4.045]
[1753139352540,2.79252128,3759.8,3759.6,4.045]
[1753139353153,0.1328,3759.8,3759.6,4.045]
[1753139355950,0.7997,3760.0,3759.6,4.045]
[1753139356277,0.1328,3760.0,3759.7,0.45729786]
[1753139356446,3.46736524,3760.6,3759.9,2.65962889]
[1753139356647,0.1328,3760.3,3760.0,6.70257424]
[1753139357052,0.1328,3760.3,3760.1,0.4411]
[1753139357566,0.1328,3760.3,3760.0,4.043]
[1753139357765,0.1328,3760.3,3760.0,4.4841]
[1753139358238,0.1328,3760.3,3760.0,4.51069574]
[1753139358775,0.1328,3760.3,3760.0,7.17024413]
[1753139358979,0.1328,3760.3,3760.0,7.14364839]
[1753139359273,0.1328,3760.3,3760.0,4.043]
[1753139359487,0.1328,3760.3,3760.0,4.06959574]
[1753139359982,0.1328,3760.3,3760.0,4.043]
[1753139362748,0.1328,3760.3,3760.0,4.06959574]
[1753139363949,0.1328,3760.3,3760.0,4.043]
[1753139364357,0.1328,3760.3,3760.0,4.06959574]
[1753139364769,0.1328,3760.3,3760.0,4.043]
[1753139364974,0.5788,3760.3,3760.0,4.043]
[1753139365447,0.7565,3760.2,3759.7,0.1328]
[1753139365642,2.65950373,3760.1,3759.6,0.001]
[1753139365846,0.1328,3759.9,3759.7,4.04]
[1753139367787,0.1328,3759.9,3759.8,0.4411]
[1753139368254,0.1328,3759.9,3759.7,4.04]
[1753139368456,0.1328,3759.9,3759.7,4.4811]
[1753139368954,0.1328,3759.9,3759.8,0.4411]
[1753139370786,0.1328,3759.9,3759.7,4.04]
[1753139371189,0.1328,3759.9,3759.7,4.4811]
[1753139372289,0.1328,3759.9,3759.7,4.04]
[1753139372594,2.65978668,3759.7,3759.6,0.001]
[1753139372759,8.90168506,3759.7,3759.6,0.001]
[1753139373081,9.34768506,3759.7,3759.6,4.04]
[1753139373281,3.23858668,3759.7,3759.6,4.04]
[1753139374009,4.02658668,3759.7,3759.6,0.001]
[1753139374182,13.31650751,3759.7,3759.6,0.001]
[1753139374567,16.31650751,3759.7,3759.6,0.001]
[1753139374878,3.44828198,3759.0,3758.9,4.043]
[1753139375211,3.89428198,3759.0,3758.9,0.001]
[1753139381419,3.44828198,3759.0,3758.9,0.001]
[1753139381914,3.89428198,3759.0,3758.9,0.001]
[1753139382415,3.44828198,3759.0,3758.9,0.001]
[1753139382723,3.89428198,3759.0,3758.9,0.001]
[1753139384415,6.89428198,3759.0,3758.9,0.001]
[1753139386304,10.93528198,3759.0,3758.9,0.001]
[1753139389718,5.79315276,3758.9,3758.8,0.001]
[1753139389912,6.57675276,3758.9,3758.8,0.001]
[1753139390086,7.04555276,3758.9,3758.8,0.001]
[1753139393322,13.1624565,3758.9,3758.8,0.001]
[1753139398111,17.2004565,3758.9,3758.8,0.001]
[1753139401332,17.2004565,3758.9,3758.2,0.001]
[1753139401333,3.41317747,3758.3,3758.2,0.001]
[1753139401550,9.53008121,3758.3,3758.2,0.001]
[1753139401747,9.99888121,3758.3,3758.2,0.001]
[1753139403052,12.99888121,3758.3,3758.2,0.001]
[1753139403549,5.66084827,3758.2,3758.1,0.001]
[1753139403750,11.12704827,3758.2,3758.1,0.001]
[1753139404647,6.62024827,3758.2,3758.1,0.001]
[1753139404951,16.77515201,3758.2,3758.1,0.001]
[1753139405150,2.6614148,3757.4,3757.3,0.001]
[1753139405350,8.77831854,3757.4,3757.3,0.001]
[1753139407549,8.77831854,3757.4,3757.3,0.4291]
[1753139407924,6.89210374,3758.2,3757.3,1.2269]
[1753139408124,0.1328,3757.5,3757.4,0.4281]
[1753139408339,0.1328,3757.5,3757.4,1.62773616]
[1753139408754,0.1328,3757.5,3757.4,4.28915096]
[1753139409047,0.1328,3757.5,3757.4,1.62773616]
[1753139411457,0.1328,3757.5,3757.4,1.2369]
[1753139411648,0.1328,3757.5,3757.3,0.001]
[1753139411956,0.1328,3757.5,3757.4,0.4281]
[1753139414019,2.79414397,3757.5,3757.4,0.4281]
[1753139414224,2.79414397,3757.5,3757.3,0.001]
[1753139414225,2.6614148,3757.4,3757.3,0.001]
[1753139414424,2.6614148,3757.4,3757.3,0.4291]
[1753139418074,2.79416853,3757.5,3757.3,0.4291]
[1753139418370,0.1328,3757.5,3757.3,0.4291]
[1753139418538,2.79414973,3757.5,3757.3,0.4291]
[1753139418743,0.1328,3757.5,3757.3,0.4291]
[1753139419066,2.79415279,3757.5,3757.3,0.4291]
[1753139419392,0.1328,3757.5,3757.4,1.2583]
[1753139428063,0.1328,3757.5,3757.4,3.9197148]
[1753139429935,3.002,3758.8,3757.9,0.7777]
[1753139430142,2.66056649,3758.6,3758.0,4.4852]
[1753139430376,0.1328,3758.1,3758.0,4.038]
[1753139430677,0.1328,3758.1,3758.0,5.05179382]
[1753139430975,0.1328,3758.1,3758.0,5.49899382]
[1753139431477,0.1328,3758.1,3758.0,8.7099837]
[1753139431638,0.1328,3758.6,3758.5,0.7777]
[1753139431838,0.1328,3758.6,3758.5,5.2629]
[1753139434186,0.1328,3758.6,3758.5,7.92353589]
[1753139434485,0.002,3758.8,3758.7,3.21049431]
[1753139434641,0.002,3758.8,3758.7,4.01479925]
[1753139434841,0.002,3758.8,3758.7,4.59479925]
[1753139435540,0.002,3758.8,3758.7,5.83950494]
[1753139435746,0.002,3758.8,3758.7,8.49999925]
[1753139435960,0.002,3758.8,3758.7,9.68197156]
[1753139437488,0.002,3758.8,3758.7,7.02147725]
[1753139437845,0.002,3758.8,3758.7,5.8119]
[1753139438338,0.002,3758.8,3758.7,5.83850494]
[1753139438747,0.002,3758.8,3758.7,8.49899925]
[1753139438950,0.002,3758.8,3758.7,8.47239431]
[1753139440087,0.002,3758.8,3758.6,0.1328]
[1753139440240,0.002,3758.8,3757.1,3.32292704]
[1753139440241,2.66242353,3758.8,3758.7,4.037]
[1753139440441,2.66091908,3758.1,3758.0,6.383]
[1753139440645,0.1328,3758.1,3758.0,10.422]
[1753139441067,2.79371908,3758.1,3758.0,10.423]
[1753139441679,0.1328,3758.1,3758.0,10.423]
[1753139441882,0.1328,3758.1,3758.0,10.8702]
[1753139442087,0.1328,3758.5,3758.1,3.49141706]
[1753139442273,0.1328,3758.5,3758.2,4.04]
[1753139442458,0.1328,3758.5,3758.2,4.4872]
[1753139442658,0.1328,3758.5,3758.3,0.4472]
[1753139442860,0.1328,3758.5,3758.4,4.041]
[1753139443196,2.66070668,3758.4,3758.0,6.383]
[1753139443346,8.77761042,3758.4,3758.1,4.041]
[1753139443546,0.1328,3758.2,3758.1,4.041]
[1753139444679,0.1328,3758.2,3758.1,4.4882]
[1753139444882,0.4618,3758.8,3758.1,5.91707593]
[1753139444883,0.1328,3758.5,3758.1,5.91707593]
[1753139445050,0.002,3758.8,3758.1,5.46987593]
[1753139445247,2.66245741,3758.8,3758.2,0.4472]
[1753139445560,2.66245741,3758.8,3758.3,4.041]
[1753139445741,2.66050604,3758.7,3758.3,4.041]
[1753139445945,0.002,3758.8,3758.3,4.041]
[1753139445946,2.66057561,3758.6,3758.3,4.041]
[1753139447590,2.66050347,3758.7,3758.4,0.4627]
[1753139447750,2.66050347,3758.7,3758.5,4.041]
[1753139449276,2.66050347,3758.7,3758.5,4.5037]
[1753139449658,0.002,3758.8,3758.6,0.4627]
[1753139449863,0.002,3758.8,3758.7,4.04]
[1753139450383,0.002,3758.8,3758.7,4.5027]
[1753139450686,0.002,3758.8,3758.7,5.2946763]
[1753139452387,0.002,3758.8,3758.7,4.5027]
[1753139455298,6.11890374,3758.8,3758.4,0.7565]
[1753139455488,0.1328,3758.4,3758.2,4.04]
[1753139455673,0.1328,3758.4,3757.4,0.5955]
[1753139455674,0.1328,3758.0,3757.4,0.5955]
[1753139455883,0.1328,3758.0,3757.5,4.04]
[1753139456081,0.1328,3758.0,3757.6,0.55]
[1753139456271,0.1328,3758.0,3757.6,1.0127]
[1753139456774,0.1328,3758.0,3757.7,0.4627]
[1753139456968,0.1328,3758.0,3757.8,4.04]
[1753139457165,0.1328,3758.0,3757.9,0.4627]
[1753139457689,0.1328,3758.0,3757.8,4.04]
[1753139457857,0.1328,3758.0,3757.8,4.5027]
[1753139458692,0.1328,3758.0,3757.8,4.04]
[1753139458895,2.79379289,3758.0,3757.8,4.04]
[1753139459059,2.66106069,3757.9,3757.8,4.04]
[1753139459878,6.11690374,3757.9,3757.8,4.039]
[1753139460257,8.77799997,3757.9,3757.8,4.039]
[1753139461064,2.6614148,3757.4,3757.3,0.001]
[1753139461374,8.77831854,3757.4,3757.3,0.001]
[1753139461586,8.77831854,3757.4,3757.3,4.041]
[1753139463313,2.6614148,3757.4,3757.3,4.041]
[1753139463469,9.30130673,3757.9,3757.3,4.041]
[1753139463668,2.66106069,3757.9,3757.3,4.8241]
[1753139463975,3.45069203,3758.3,3757.5,3.21129617]
[1753139464187,3.45069203,3758.3,3757.4,1.0127]
[1753139464188,0.1328,3757.8,3757.6,7.16496519]
[1753139464410,0.1328,3758.0,3757.7,0.4627]
[1753139464577,0.1328,3758.0,3757.8,0.4627]
[1753139464775,0.1328,3758.0,3757.9,4.042]
[1753139465899,2.79378988,3758.0,3757.9,4.042]
[1753139466100,0.1328,3758.0,3757.9,4.042]
[1753139466300,2.66121837,3757.7,3757.3,0.02761485]
[1753139466501,0.7917,3757.9,3757.4,4.043]
[1753139466502,0.1328,3757.6,3757.4,4.043]
[1753139467085,2.79408099,3757.6,3757.4,4.043]
[1753139467407,0.1328,3757.6,3757.4,4.043]
[1753139468506,0.1328,3757.6,3757.5,0.4627]
[1753139469732,0.1328,3757.6,3757.4,4.043]
[1753139470521,2.79407911,3757.6,3757.4,4.043]
[1753139470724,0.1328,3757.6,3757.4,4.043]
[1753139473188,0.1328,3757.6,3757.5,4.041]
[1753139474227,2.79407315,3757.6,3757.5,4.041]
[1753139477331,2.6614148,3757.4,3757.3,0.001]
[1753139477502,2.6614148,3757.4,3757.3,4.04]
[1753139478032,3.5728148,3757.4,3757.3,0.001]
[1753139478237,3.5728148,3757.4,3757.3,4.04]
[1753139478625,3.5728148,3757.4,3757.3,0.001]
[1753139480433,6.5728148,3757.4,3757.3,0.001]
[1753139482026,6.5728148,3757.4,3757.3,1e-08]
[1753139482203,2.66191071,3756.7,3756.5,0.001]
[1753139482403,11.96321744,3756.7,3756.5,0.001]
[1753139482603,12.39801744,3756.7,3756.5,0.001]
[1753139483016,15.39801744,3756.7,3756.5,0.001]
[1753139483221,11.78511307,3756.7,3756.5,0.001]
[1753139483434,12.21991307,3756.7,3756.5,0.001]
[1753139483732,11.78511307,3756.7,3756.5,0.001]
[1753139483933,2.66155647,3757.2,3756.5,0.001]
[1753139483934,8.78483735,3757.1,3756.6,0.4485]
[1753139484102,6.12320236,3757.1,3756.7,0.7558]
[1753139484301,6.12320236,3757.1,3756.8,0.4475]
[1753139484504,0.8252,3757.8,3756.9,0.4475]
[1753139484735,0.1328,3757.2,3756.9,0.4475]
[1753139486906,0.1328,3757.2,3756.9,3.10925897]
[1753139487106,0.1328,3757.2,3757.0,3.10914515]
[1753139487352,0.1328,3757.2,3756.8,3.45286013]
[1753139487353,0.1328,3757.2,3757.1,4.4935]
[1753139488218,2.66108186,3757.9,3757.1,7.94975]
[1753139488440,0.1328,3757.4,3757.1,6.70762731]
[1753139488619,0.1328,3757.4,3757.2,0.4475]
[1753139489134,0.1328,3757.4,3757.3,0.4475]
[1753139489841,0.1328,3757.4,3757.1,4.046]
[1753139490232,0.1328,3757.4,3757.1,4.4935]
[1753139490808,0.1328,3757.4,3757.2,0.4475]
[1753139494284,0.1328,3757.4,3757.3,0.4475]
[1753139494459,0.1328,3757.4,3757.3,5.1294006]
[1753139494641,0.1328,3757.9,3757.3,1.91791496]
[1753139494840,0.1328,3757.6,3757.3,1.2024]